Cogmind - Beta 11.1 @@@ ROGUE MODE // 2022.08.31 @ 15:47:47 Player: deadnoob Result: Destroyed by G-47 Trooper with Particle Gun Performance ------------- Evolutions (0) 0 Regions Visited (2) 400 Robots Destroyed (11) 55 Value Destroyed (262) 262 Prototype IDs (0) 0 Alien Tech Used (0) 0 Bonus (0) 0 TOTAL SCORE: 717 Bonus ------- None Cogmind --------- Core Integrity 0/250 Matter 236/300 Energy 125/125 System Corruption 7% Temperature Cool (9) Movement Treading (240) Ox1 Location -10/Mines Parts ------- > --- POWER (1) -------- Light Ion Engine > --- PROPULSION (2) --- Light Treads Light Treads > --- UTILITY (2) ------ Heat Sink High-capacity Storage Unit > --- WEAPON (2) ------- Shotgun Shotgun > --- INVENTORY (20) --- Light Nuclear Core Aluminum Leg Aluminum Leg Aluminum Leg Aluminum Leg Aluminum Leg Wheel Wheel Compact Wheel Small Storage Unit Medium Storage Unit Medium Storage Unit Improved Terrain Scanner Utility Shielding Medium Laser Beam Cannon Mining Laser Peak State ------------ > --- POWER ------------ Light Ion Engine > --- PROPULSION ------- Light Treads Light Treads > --- UTILITY ---------- High-capacity Storage Unit Huge Storage Unit > --- WEAPON ----------- Shotgun Shotgun > --- INVENTORY -------- Light Nuclear Core Aluminum Leg Aluminum Leg Aluminum Leg Aluminum Leg Aluminum Leg Wheel Wheel Compact Wheel Heat Sink Small Storage Unit Medium Storage Unit Medium Storage Unit Improved Terrain Scanner Utility Shielding Medium Laser Beam Cannon Mining Laser [Rating: 11] Favorites ----------- Power Light Ion Engine Engine Light Ion Engine Propulsion Light Treads Treads Light Treads Leg Aluminum Leg Wheel Wheel Utility High-capacity Storage Unit Device Heat Sink Storage High-capacity Storage Unit Weapon Shotgun Energy Gun Medium Laser Ballistic Gun Shotgun Build | -11 -10 -10 ------- Run | Scr Mat Min Slots Evolved . | . . . Power . | . . . Propulsion . | . . . Utility . | . . . Weapon . | . . . Parts Attached 20 | 6 12 2 Power 2 | 1 1 . Engine 2 | 1 1 . Core . | . . . Reactor . | . . . Propulsion 7 | 2 5 . Treads 4 | . 4 . Leg 2 | 2 . . Wheel 1 | . 1 . Hover . | . . . Flight . | . . . Utility 5 | 1 2 2 Device 1 | . . 1 Storage 4 | 1 2 1 Processor . | . . . Hackware . | . . . Protection . | . . . Artifact . | . . . Weapon 6 | 2 4 . Energy Gun 1 | 1 . . Energy Cannon . | . . . Ballistic Gun 5 | 1 4 . Ballistic Cannon . | . . . Launcher . | . . . Special Weapon . | . . . Impact Weapon . | . . . Slashing Weapon . | . . . Piercing Weapon . | . . . Special Melee Weapon . | . . . Unidentified Prototypes . | . . . Parts Lost 3 | . 3 . Power 1 | . 1 . Propulsion . | . . . Utility . | . . . Weapon 2 | . 2 . Highest Loss Streak 2 | . 2 . To Critical Strikes . | . . . Average Slot Usage (%) 72 | . 67 85 Engine 13 | . 12 14 Treads 14 | . 9 28 Wheel 1 | . 1 . Storage 14 | . 14 14 Ballistic Gun 27 | . 27 28 Naked Turns . | . . . Heaviest Build 54 | 11 54 49 Greatest Support 40 | 20 40 40 Greatest Overweight (x) 16 | . 16 1 Average Overweight (x) 3 | . 5 1 Largest Inventory Capacity 25 | 8 20 25 Average Capacity 19 | 6 19 20 Most Carried 18 | 6 15 18 Average Carried 13 | 2 13 15 Final Capacity 20 | 8 20 20 Final Carried 17 | 6 12 17 Class Distribution -------------------- 100% | Mutant Dominant Class ---------------- Mutant | -10/Materials Mutant | -10/Mines Resources | -11 -10 -10 ----------- Run | Scr Mat Min Matter Collected 499 | 31 143 325 Remotely . | . . . Salvage Created 522 | . 143 379 Parts 22 | . 7 15 Haulers Intercepted . | . . . Recyclers Shooed . | . . . Parts Field Recycled . | . . . Retrieved Matter . | . . . Parts Self-Destructed . | . . . Prevented . | . . . Kills | -11 -10 -10 ------- Run | Scr Mat Min Combat Hostiles Destroyed 6 | . 1 5 Guns 6 | . 1 5 Classes Destroyed 3 | . 2 1 Tunneler 2 | . . 2 Recycler 3 | . 1 2 Grunt 6 | . 1 5 Best Kill Streak 4 | . 1 4 Combat Bots Only 2 | . 1 2 Max Kills in Single Turn 2 | . 1 2 Gunslinging . | . . . Exploded . | . . . Melee . | . . . Uniques/NPCs Destroyed . | . . . Combat | -11 -10 -10 -------- Run | Scr Mat Min Damage Taken 875 | . 514 361 Core 256 | . 177 79 Absorbed by Shields . | . . . Core Remaining (%) 100 | 100 . . Volleys Fired 24 | . 3 21 Largest 2 | . 2 2 Hottest 46 | . 46 46 Shots Fired 47 | . 6 41 Gun 47 | . 6 41 Cannon . | . . . Launcher . | . . . Special . | . . . Kinetic 47 | . 6 41 Thermal . | . . . Explosive . | . . . Electromagnetic . | . . . Robot Hit Streak 5 | . 3 5 Robot Miss Streak 3 | . 1 3 Penetration Max . | . . . Secondary Targets 2 | . . 2 Max Gunslinging Chain 1 | . . 1 Shots Hit Robots 40 | . 5 35 Core Hits 26 | . 6 20 Critical Kills . | . . . Critical Parts Destroyed 1 | . . 1 Critical Strikes 1 | . . 1 Destroy 1 | . . 1 Melee Attacks . | . . . Impact . | . . . Slashing . | . . . Piercing . | . . . Sneak Attacks . | . . . Combat Hostiles . | . . . Follow-up Attacks . | . . . Damage Inflicted 617 | . 73 544 Guns 574 | . 64 510 Cannons . | . . . Explosions . | . . . Melee . | . . . Ramming 43 | . 9 34 Kinetic 574 | . 64 510 Thermal . | . . . Explosive . | . . . Electromagnetic . | . . . Impact . | . . . Slashing . | . . . Piercing . | . . . Highest Corruption 7 | . 7 7 Average Corruption 6 | . 6 7 Corruption Purged . | . . . Corruption Blocked . | . . . Effects 37 | . 28 9 Message Errors 10 | . 8 2 Matter Fused 10 | . 6 4 Heat Flow Errors 6 | . 6 . Energy Discharges 3 | . 2 1 Data Loss (minor) 3 | . 3 . Data Loss (major) 3 | . 3 . Alerts 1 | . . 1 Weapon Failures 1 | . . 1 Overload Shots . | . . . Overflow Damage . | . . . Projectiles . | . . . Explosions . | . . . Melee . | . . . Knockbacks . | . . . Impact . | . . . Kinetic . | . . . Secondary . | . . . Self-Inflicted Damage 1 | . 1 . Shots . | . . . Rammed 20 | . 13 7 Targets Rammed 20 | . 13 7 Kicked . | . . . Crushed . | . . . Highest Temperature 248 | . 248 15 Average Temperature 81 | . 110 5 Received Heat Transfer 495 | . 276 219 Siege Activations . | . . . Robots Corrupted . | . . . Combat Hostiles . | . . . Parts Fried . | . . . Impact Corruptions . | . . . Robots Melted . | . . . Combat Hostiles . | . . . Parts Melted . | . . . Heat Transferred . | . . . Parts Sabotaged . | . . . Parts Stolen . | . . . Parts Stripped . | . . . Power Chain Reactions . | . . . Missiles Intercepted . | . . . Alert | -11 -10 -10 ------- Run | Scr Mat Min Peak Influence 133 | . 35 133 Initial 13 | . . 13 Average 32 | . 10 99 Maximum Alert Level . | . . . Low Security (%) 100 | 100 100 100 Level 1 . | . . . Level 2 . | . . . Level 3 . | . . . Level 4 . | . . . Level 5 . | . . . High Security . | . . . Max Security . | . . . Squads Dispatched 1 | . 1 . Investigation . | . . . Extermination . | . . . Reinforcement 1 | . 1 . Assault . | . . . Garrison . | . . . Intercept . | . . . Searches Triggered . | . . . Construction Impeded . | . . . Haulers Reinforced . | . . . Active Scanning Responses . | . . . Cargo Convoy Interrupts . | . . . Stealth | -11 -10 -10 --------- Run | Scr Mat Min Distress Signals 1 | . . 1 Communications Jammed . | . . . Distress Signals . | . . . Times Spotted 10 | . 4 6 Peak Tracking Total 2 | . 1 2 Tactical Retreats . | . . . Traps | -11 -10 -10 ------- Run | Scr Mat Min Traps Triggered 5 | . 5 . Indirectly . | . . . Trap Hack Attempts . | . . . Triggered . | . . . Disarmed . | . . . Reprogrammed . | . . . Reused . | . . . Traps Extracted . | . . . Installed . | . . . Triggered . | . . . Machines | -11 -10 -10 ---------- Run | Scr Mat Min Machines Disabled . | . . . Max in Single Turn . | . . . Machines Sabotaged . | . . . Garrisons Compromised . | . . . Overloaded Fab Kills . | . . . Hacking | -11 -10 -10 --------- Run | Scr Mat Min Machines Accessed 4 | . 4 . Terminals 4 | . 4 . Fabricators . | . . . Repair Stations . | . . . Recycling Units . | . . . Scanalyzers . | . . . Garrison Access . | . . . Total Hacks 11 | . 11 . Successful 3 | . 3 . Failed 8 | . 8 . Catastrophic 1 | . 1 . Database Lockouts . | . . . Manual 8 | . 8 . Terminals 11 | . 11 . Fabricators . | . . . Repair Stations . | . . . Recycling Units . | . . . Scanalyzers . | . . . Garrison Access . | . . . Terminal Hacks 1 | . 1 . Branch Access Points 1 | . 1 . Fabricator Hacks . | . . . Repair Station Hacks . | . . . Recycling Unit Hacks . | . . . Scanalyzer . | . . . Garrison Access Hacks . | . . . Unauthorized Hacks 2 | . 2 . Terminals 2 | . 2 . Botnet 2 | . 2 . Fabricators . | . . . Repair Stations . | . . . Recycling Units . | . . . Scanalyzers . | . . . Garrison Access . | . . . Data Cores Recovered . | . . . Used . | . . . Hacking Detections 4 | . 4 . Full Trace Events 2 | . 2 . Feedback Events . | . . . Feedback Blocked . | . . . Robot Schematics Acquired . | . . . Robots Built . | . . . Authchips . | . . . Time . | . . . Total Robot Build Rating . | . . . Part Schematics Acquired . | . . . Parts Built . | . . . Authchips . | . . . Time . | . . . Total Part Build Rating . | . . . Parts Repaired . | . . . Time . | . . . Parts Recycled . | . . . Recycled Matter . | . . . Retrieved Matter . | . . . Retrieved Components . | . . . Parts Scanalyzed . | . . . Part Schematics Acquired . | . . . Parts Damaged . | . . . Bothacking | -11 -10 -10 ------------ Run | Scr Mat Min Used RIF Installer . | . . . Robots Hacked . | . . . Non-combat . | . . . Combat . | . . . Robot Hacks Applied . | . . . Relay Couplers Released . | . . . Fabnet Peak Effective % . | . . . Robots Rewired . | . . . Allies Hacked . | . . . Hacks Repelled . | . . . Allies | -11 -10 -10 -------- Run | Scr Mat Min Total Allies . | . . . Largest Group . | . . . Highest-Rated Group . | . . . Highest-Rated Ally . | . . . Total Orders . | . . . Ally Attacks . | . . . Total Damage . | . . . Kills . | . . . Allies Corrupted . | . . . Allies Melted . | . . . Intel | -11 -10 -10 ------- Run | Scr Mat Min Robot Analysis Total . | . . . Derelict Logs Recovered 1 | . . 1 Drone Launches . | . . . Drone Recoveries . | . . . Exploration | -11 -10 -10 ------------- Run | Scr Mat Min Turns Passed 1679 | 80 1171 428 Spaces Moved 500 | 58 302 140 Core 69 | 6 63 . Treads 246 | . 106 140 Legs 84 | 52 32 . Wheels 101 | . 101 . Hover . | . . . Flight . | . . . Fastest Speed 50 | 50 120 240 Average Speed 275 | 112 323 240 Slowest Speed 850 | 120 850 240 Overloaded Moves . | . . . Propulsion Burnouts . | . . . Robots Hopped . | . . . Cave-ins Triggered . | . . . Exploration Rate (%) 29 | 4 46 38 Regions Visited 2 Branch Regions 1 Pre-discovered Areas . | . . . Known Exits Taken 1 | . 1 . Unknown Exits Taken 1 | 1 . . Scrap Searched 1 | . . 1 Spaces Dug . | . . . Terrain Destroyed . | . . . Melee . | . . . Projectile . | . . . AOE . | . . . Terrain Rammed . | . . . Walls Destroyed . | . . . Machines Disabled . | . . . Actions | -11 -10 -10 --------- Run | Scr Mat Min Total 654 | 69 403 182 Wait 61 | . 56 5 Move 498 | 57 301 140 Hop . | . . . Pick Up 23 | 6 11 6 Fast Attach 11 | 6 4 1 Attach 6 | . 5 1 Detach 3 | . 3 . Swap 3 | . 3 . Drop 5 | . 4 1 Fire 24 | . 3 21 Melee . | . . . Ram 13 | . 13 . Kick . | . . . Crush 7 | . . 7 Escape Stasis . | . . . Rewire . | . . . Trap . | . . . Miscellaneous . | . . . Route ------- -11/Scrapyard -10/Materials (discovered 2 exits: [*Mat] / *Min) -10/Mines (discovered 2 exits: [*Mat x2]) History --------- Turn | Location | Event 59 | -11/Scrapyard | Discovered new exit (range 15) 81 | -11/Scrapyard | Entered Materials 180 | -10/Materials | Identified exit to Mines 226 | -10/Materials | Discovered new exit (range 8) 303 | -10/Materials | Build established: Mutant 997 | -10/Materials | Core integrity fell below 50% 1252 | -10/Materials | Entered Mines 1298 | -10/Mines | Discovered new exit (range 5) 1341 | -10/Mines | Core integrity fell below 20% 1474 | -10/Mines | Discovered new exit (range 7) 1680 | -10/Mines | Destroyed by G-47 Trooper with Particle Gun Last Messages --------------- 01456_ R-06 Scavenger collects Com. Wheel. 01474_ EXIT=FOUND 01501_ System corrupted: IFF burst signal emitted. 01534_ LZ7#C ULL&EKKHMFSV86A KFTIUNQX Map ----- +----------------------------------------------------+ | | | | | | | | | | | | | | | | | | | | | | | ??????????????????????????????????????????????? | | ??????????????????????????????????????????????? | | ??????????????????????????????????????????????? | | ??????????????????????????????????????????????? | | ??????????????????????????????????????????????? | | ?????????????????????######???????????????????? | | ???????????? ??????## ##??????????????????? | | ??????????? ##### #??????????????????? | | ?????????????? k ???????????????????? | | ????????????????? g #???????????????????? | | ????????????????????#% ##??????????????????? | | ????????????????????#* ####???????????????? | | ????????????????????## ##??????????????? | | ?????????????????????## #??????????????? | | ?????????????????????## @ #??????????????? | | ?????????????????????# #??????????????? | | ?????????????????????# ###??????????????? | | ?????????????????????## ##????????????????? | | ??????????????????????#### #?????????????????? | | ?????????????????????????# #?????????????????? | | ?????????????????????????# #?????????????????? | | ?????????????????????????# #?????????????????? | | ?????????????????????????# ##????????????????? | | ?????????????????????????# ##???????????????? | | ????????????????????????## #???????????????? | | ????????????????????????# #???????????????? | | ???????????????????###### ##???????????????? | | ????????????????# ##???????????????? | | ??????????????????######### ##??????????????? | | ??????????????????????????# ##?????????????? | | ??????????????????????????# ##????????????? | | ??????????????????????????## ##???????????? | | ???????????????????????????#### ##??????????? | | ??????????????????????????????## #??????????? | | ???????????????????????????????## ##??????????? | | ????????????????????????????????# #???????????? | | ????????????????????????????????# #???#######?? | | ????????????????????????????????# #### #?? | | ????????????????????????????????# #?? | +----------------------------------------------------+ Best States ------------- Heat Dissipation 35 Energy Generation 10 Energy Capacity 125 Matter Stores 300 Matter Capacity 300 Sight Range 16 Terrain Scan Density 10 Evasion (%) 55 Recoil Reduction 2 Item Schematics ----------------- None Robot Schematics ------------------ None Fabricated ------------ Nothing Alien Tech Used ----------------- None Achievements -------------- None Challenges ------------ None Game ------ Seed HugeLegPit Manual? 0 Play Time 00:08:30 Cumulative 55.2 hours Start 2022.08.31 @ 15:40:53 End 2022.08.31 @ 15:47:47 Sessions 1 Manual Loads 0 Difficulty Rogue Special Mode None Game No. 83 Rogue 83 Adventurer 0 Explorer 0 Win Type - Total 0 Types 0/0/0/0/0/0/0/0/0 Lore% 53 Gallery% 49 Achievement% 41 Wizard Run 0 Options --------- ASCII 0 Keyboard 0 Movement Numpad Keybinds 0 Fullscreen 2 Font 18/SmallcapsGlow Map View 76x50 Tactical HUD 1 Map Filters NONE Filters NONE Steam 1 RUN: 85bf3511-6be1-4697-95c1-a9c72d5fcd7f